fUSD/lending_fUSD_20250302
["ID","MTS","AMOUNT","RATE_DAILY","PERIOD"]
[355162570,1740939050226,-500.0,0.00025892,2]
[355162571,1740939050238,-500.0,0.00025892,2]
[355162572,1740939050250,-500.0,0.00025892,2]
[355162573,1740939050262,-500.0,0.00025892,2]
[355162574,1740939050273,-500.0,0.00025892,2]
[355162575,1740939050284,-500.0,0.00025892,2]
[355162576,1740939050296,-500.0,0.00025892,2]
[355162577,1740939050308,-500.0,0.00025892,2]
[355162578,1740939050320,-500.0,0.00025892,2]
[355162579,1740939050332,-500.0,0.00025892,2]
[355162580,1740939050345,-500.0,0.00025892,2]
[355162581,1740939050360,-318.83,0.00025892,2]
[355162582,1740939050375,-500.0,0.00025892,2]
[355162583,1740939050386,-500.0,0.00025892,2]
[355162584,1740939050398,-500.0,0.00025892,2]
[355162585,1740939050410,-500.0,0.00025892,2]
[355162586,1740939050422,-500.0,0.00025892,2]
[355162587,1740939050433,-500.0,0.00025892,2]
[355162588,1740939050445,-500.0,0.00025892,2]
[355162589,1740939050456,-525.37,0.00025892,2]
[355162590,1740939050469,-500.0,0.00025892,2]
[355162591,1740939050481,-500.0,0.00025892,2]
[355162592,1740939050493,-500.0,0.00025892,2]
[355162593,1740939050504,-500.0,0.00025892,2]
[355162594,1740939050515,-500.0,0.00025892,2]
[355162595,1740939050525,-500.0,0.00025892,2]
[355162596,1740939050537,-500.0,0.00025892,2]
[355162597,1740939050548,-500.0,0.00025892,2]
[355162598,1740939050559,-500.0,0.00025892,2]
[355162599,1740939050571,-856.65,0.00025892,2]
[355162600,1740939050581,-562.08,0.00025892,2]
[355162601,1740939050592,-73.20343409,0.00025892,2]
[355162602,1740939050606,-426.79656591,0.00025892,2]
[355162603,1740939050618,-1557.72,0.00025892,2]
[355162604,1740939050630,-500.0,0.00025892,2]
[355162605,1740939050642,-588.9,0.00025892,2]
[355162606,1740939050653,-927.56,0.00025892,2]
[355162607,1740939050665,-493.49,0.00025892,2]
[355162608,1740939050677,-500.0,0.00025892,2]
[355162609,1740939050689,-298.93104469,0.00025892,2]
[355162610,1740939050702,-1038.64895531,0.00025892,2]
[355162611,1740939050713,-500.0,0.00025892,2]
[355162612,1740939050725,-795.64577354,0.00025892,2]
[355162613,1740939050736,-873.07,0.00025892,2]
[355162614,1740939050747,-360.00727344,0.00025892,2]
[355162615,1740939050761,-139.99272656,0.00025892,2]
[355162616,1740939050772,-956.53,0.00025892,2]
[355162617,1740939050783,-508.85,0.00025892,2]
[355162618,1740939050794,-1282.66,0.00025892,2]
[355162619,1740939050805,-1394.32,0.00025892,2]
[355162620,1740939050816,-763.69,0.00025892,2]
[355162621,1740939050827,-762.55,0.00025893,7]
[355162622,1740939050838,-762.55,0.00025893,7]
[355162623,1740939050850,-151.0,0.00025893,7]
[355162624,1740939050862,-500.0,0.00025893,2]
[355162625,1740939050874,-560.89,0.00025893,2]
[355162626,1740939050884,-368.26635151,0.00025893,2]
[355162627,1740939050893,-500.0,0.00025893,2]
[355162628,1740939050903,-377.71714637,0.00025893,2]
[355162629,1740939050912,-295.85,0.00025893,2]
[355162630,1740939050922,-500.0,0.00025893,2]
[355162631,1740939050931,-264.0,0.000259,4]
[355162632,1740939050941,-700.0,0.000259,9]
[355162633,1740939050951,-345.91905719,0.00025969,4]
[355162634,1740939050960,-499.99999999,0.000261,2]
[355162635,1740939050970,-3089.69456907,0.00026156,2]
[355162636,1740939050979,-1081.23,0.00026164,2]
[355162637,1740939050988,-1217.42,0.00026164,2]
[355162638,1740939050998,-1732.71,0.00026164,2]
[355162639,1740939051008,-248.006781,0.00026164,2]
[355162640,1740939051017,-550.93,0.00026164,2]
[355162641,1740939051028,-679.32,0.00026164,2]
[355162642,1740939051040,-822.5,0.00026164,2]
[355162643,1740939051050,-196.854988,0.00026164,2]
[355162644,1740939051059,-625.27,0.00026164,2]
[355162645,1740939051069,-720.38,0.00026164,2]
[355162646,1740939051079,-1866.42,0.00026164,2]
[355162647,1740939051088,-1050.5,0.00026164,2]
[355162648,1740939051099,-930.37,0.00026164,2]
[355162649,1740939051108,-1219.5,0.00026164,2]
[355162650,1740939051119,-629.6,0.00026164,2]
[355162651,1740939051129,-1652.74,0.00026164,2]
[355162652,1740939051139,-518.97,0.00026164,2]
[355162653,1740939051150,-701.89,0.00026164,2]
[355162654,1740939051159,-500.0,0.00026164,2]
[355162655,1740939051169,-500.0,0.00026164,2]
[355162656,1740939051179,-979.63,0.00026164,2]
[355162657,1740939051189,-898.75,0.00026164,2]
[355162658,1740939051197,-500.0,0.00026164,2]
[355162659,1740939051207,-500.0,0.00026164,2]
[355162660,1740939051217,-500.0,0.00026164,2]
[355162661,1740939051227,-632.66,0.00026164,2]
[355162662,1740939051236,-500.0,0.00026164,2]
[355162663,1740939051248,-867.95,0.00026164,2]
[355162664,1740939051258,-533.61,0.00026164,2]
[355162665,1740939051268,-808.44,0.00026164,2]
[355162666,1740939051278,-500.0,0.00026164,2]
[355162667,1740939051288,-500.0,0.00026164,2]
[355162668,1740939051298,-500.0,0.00026164,2]
[355162669,1740939051308,-510.05,0.00026164,2]
[355162670,1740939051318,-500.0,0.00026164,2]
[355162671,1740939051331,-515.47,0.00026164,2]
[355162672,1740939051341,-500.0,0.00026164,2]
[355162673,1740939051351,-544.53,0.00026164,2]
[355162674,1740939051361,-500.0,0.00026164,2]
[355162675,1740939051372,-500.0,0.00026164,2]
[355162676,1740939051383,-500.0,0.00026164,2]
[355162677,1740939051394,-834.57,0.00026164,2]
[355162678,1740939051839,-705.22,0.00026164,2]
[355162679,1740939051863,-500.0,0.00026164,2]
[355162680,1740939051887,-1244.05,0.00026164,2]
[355162681,1740939051911,-500.0,0.00026164,2]
[355162682,1740939051931,-818.12,0.00026164,2]
[355162683,1740939051944,-861.37,0.00026164,2]
[355162684,1740939051954,-500.0,0.00026164,2]
[355162685,1740939051964,-574.72,0.00026164,2]
[355162686,1740939051974,-539.64,0.00026164,2]
[355162687,1740939051984,-500.0,0.00026165,2]
[355162688,1740939051994,-500.0,0.00026165,2]
[355162689,1740939052004,-500.0,0.00026165,2]
[355162690,1740939052014,-633.5,0.00026165,2]
[355162691,1740939052023,-500.0,0.00026165,2]
[355162692,1740939052033,-500.0,0.00026165,2]
[355162693,1740939052043,-500.0,0.00026165,2]
[355162694,1740939052053,-500.0,0.00026165,2]
[355162695,1740939052064,-500.0,0.00026165,2]
[355162696,1740939052074,-348.24190764,0.00026165,2]
[355162697,1740939052087,-151.75809236,0.00026165,2]
[355162698,1740939052097,-404.63563642,0.00026165,2]
[355162699,1740939052109,-95.36436358,0.00026165,2]
[355162700,1740939052121,-460.287955,0.00026165,2]
[355162701,1740939052131,-500.0,0.00026165,2]
[355162702,1740939052140,-500.0,0.00026165,2]
[355162703,1740939052150,-500.0,0.00026165,2]
[355162704,1740939052160,-199.22920595,0.00026165,2]
[355162705,1740939052176,-300.77079405,0.00026165,2]
[355162706,1740939052185,-19.06506777,0.00026165,2]
[355162707,1740939052197,-480.93493223,0.00026165,2]
[355162708,1740939052207,-500.0,0.00026165,2]
[355162709,1740939052216,-500.0,0.00026165,2]
[355162710,1740939052226,-500.0,0.00026165,2]
[355162711,1740939052237,-500.0,0.00026165,2]
[355162712,1740939052246,-503.26,0.00026165,2]
[355162713,1740939052256,-500.0,0.00026165,2]
[355162714,1740939052266,-500.0,0.00026165,2]
[355162715,1740939052276,-500.0,0.00026165,2]
[355162716,1740939052285,-92.56833612,0.00026165,2]
[355162717,1740939052297,-407.43166388,0.00026165,2]
[355162718,1740939052306,-500.0,0.00026165,2]
[355162719,1740939052315,-500.0,0.00026165,2]
[355162720,1740939052327,-500.0,0.00026165,2]
[355162721,1740939052338,-500.0,0.00026165,2]
[355162722,1740939052347,-500.0,0.00026165,2]
[355162723,1740939052356,-476.95,0.00026165,2]
[355162724,1740939052373,-500.0,0.00026165,2]
[355162725,1740939052382,-750.0,0.00026165,2]
[355162726,1740939052392,-500.0,0.00026165,2]
[355162727,1740939052402,-500.0,0.00026165,2]
[355162728,1740939052412,-500.0,0.00026165,2]
[355162729,1740939052423,-500.0,0.00026165,2]
[355162730,1740939052432,-500.0,0.00026165,2]
[355162731,1740939052442,-500.0,0.00026165,2]
[355162732,1740939052452,-500.0,0.00026165,2]
[355162733,1740939052461,-500.0,0.00026165,2]
[355162734,1740939052472,-520.22,0.00026165,2]
[355162735,1740939052482,-500.0,0.00026165,2]
[355162736,1740939052492,-603.34,0.00026165,2]
[355162737,1740939052501,-500.0,0.00026165,2]
[355162738,1740939052511,-592.0,0.00026165,2]
[355162739,1740939052521,-500.0,0.00026165,2]
[355162740,1740939052531,-3256.71,0.00026165,2]
[355162741,1740939052541,-500.0,0.00026165,2]
[355162742,1740939052551,-857.56,0.00026165,2]
[355162743,1740939052562,-500.0,0.00026165,2]
[355162744,1740939052571,-500.0,0.00026165,2]
[355162745,1740939052581,-500.0,0.00026165,2]
[355162746,1740939052591,-500.0,0.00026165,2]
[355162747,1740939052600,-500.0,0.00026165,2]
[355162748,1740939052610,-925.49,0.00026165,2]
[355162749,1740939052620,-500.0,0.00026165,2]
[355162750,1740939052631,-500.0,0.00026165,2]
[355162751,1740939052640,-500.0,0.00026165,2]
[355162752,1740939052649,-500.0,0.00026165,2]
[355162753,1740939052659,-711.07,0.00026165,2]
[355162754,1740939052669,-500.0,0.00026165,2]
[355162755,1740939052679,-500.0,0.00026165,2]
[355162756,1740939052689,-673.25,0.00026165,2]
[355162757,1740939052698,-500.0,0.00026165,2]
[355162758,1740939052709,-500.0,0.00026165,2]
[355162759,1740939052719,-927.56,0.00026165,2]
[355162760,1740939052729,-500.0,0.00026165,2]
[355162761,1740939052740,-814.36,0.00026165,2]
[355162762,1740939052750,-500.0,0.00026165,2]
[355162763,1740939052759,-676.78,0.00026165,2]
[355162764,1740939052769,-500.0,0.00026165,2]
[355162765,1740939052780,-500.0,0.00026165,2]
[355162766,1740939052789,-500.0,0.00026165,2]
[355162767,1740939052798,-500.0,0.00026165,2]
[355162768,1740939052808,-528.21,0.00026165,2]
[355162769,1740939052818,-500.0,0.00026165,2]
[355162770,1740939052828,-500.0,0.00026165,2]
[355162771,1740939052838,-600.53,0.00026165,2]
[355162772,1740939052848,-650.74,0.00026165,2]
[355162773,1740939052857,-500.0,0.00026165,2]
[355162774,1740939052868,-500.0,0.00026165,2]
[355162775,1740939052881,-500.0,0.00026165,2]
[355162776,1740939052898,-608.12,0.00026165,2]
[355162777,1740939052915,-500.0,0.00026165,2]
[355162778,1740939052927,-500.0,0.00026165,2]
[355162779,1740939052938,-500.0,0.00026165,2]
[355162780,1740939052948,-713.73,0.00026165,2]
[355162781,1740939052958,-500.0,0.00026165,2]
[355162782,1740939052968,-500.0,0.00026165,2]
[355162783,1740939052979,-592.31,0.00026165,2]
[355162784,1740939052989,-768.6,0.00026165,2]
[355162785,1740939052999,-500.0,0.00026165,2]
[355162786,1740939053011,-1343.9,0.00026165,2]
[355162787,1740939053021,-500.0,0.00026165,2]
[355162788,1740939053032,-652.56,0.00026165,2]
[355162789,1740939053043,-4140.74,0.00026165,2]
[355162790,1740939053052,-596.26,0.00026165,2]
[355162791,1740939053063,-500.0,0.00026165,2]
[355162792,1740939053074,-500.0,0.00026165,2]
[355162793,1740939053084,-1270.43,0.00026165,2]
[355162794,1740939053094,-500.0,0.00026165,2]
[355162795,1740939053104,-791.57,0.00026165,2]
[355162796,1740939053114,-500.0,0.00026165,2]
[355162797,1740939053127,-500.0,0.00026165,2]
[355162798,1740939053136,-500.0,0.00026165,2]
[355162799,1740939053147,-500.0,0.00026166,2]
[355162800,1740939053158,-500.0,0.00026166,2]
[355162801,1740939053168,-500.0,0.00026166,2]
[355162802,1740939053178,-500.0,0.00026166,2]
[355162803,1740939053188,-500.0,0.00026166,2]
[355162804,1740939053198,-500.0,0.00026166,2]
[355162805,1740939053208,-500.0,0.00026166,2]
[355162806,1740939053218,-500.0,0.00026166,2]
[355162807,1740939053230,-500.0,0.00026166,2]
[355162808,1740939053240,-500.0,0.00026166,2]
[355162809,1740939053251,-500.0,0.00026166,2]
[355162810,1740939053262,-174.98,0.00026166,2]
[355162811,1740939053275,-500.0,0.00026166,2]
[355162812,1740939053286,-500.0,0.00026166,2]
[355162813,1740939053296,-500.0,0.00026166,2]
[355162814,1740939053307,-500.0,0.00026166,2]
[355162815,1740939053318,-500.0,0.00026166,2]
[355162816,1740939053331,-500.0,0.00026166,2]
[355162817,1740939053342,-500.0,0.00026166,2]
[355162818,1740939053353,-500.0,0.00026166,2]
[355162819,1740939053363,-500.0,0.00026166,2]
[355162820,1740939053377,-238.01,0.00026166,2]
[355162821,1740939053388,-500.0,0.00026166,2]
[355162822,1740939053404,-500.0,0.00026166,2]
[355162823,1740939053415,-500.0,0.00026166,2]
[355162824,1740939053427,-500.0,0.00026166,2]
[355162825,1740939053439,-525.37,0.00026166,2]
[355162826,1740939053450,-500.0,0.00026166,2]
[355162827,1740939053461,-234.75068176,0.00026166,2]
[355162828,1740939053472,-500.0,0.00026166,2]
[355162829,1740939053483,-500.0,0.00026166,2]
[355162830,1740939053494,-500.0,0.00026166,2]
[355162831,1740939053504,-500.0,0.00026166,2]
[355162832,1740939053515,-500.0,0.00026166,2]
[355162833,1740939053526,-500.0,0.00026166,2]
[355162834,1740939053537,-500.0,0.00026166,2]
[355162835,1740939053547,-500.0,0.00026166,2]
[355162836,1740939053558,-856.65,0.00026166,2]
[355162837,1740939053569,-500.0,0.00026166,2]
[355162838,1740939053579,-1557.72,0.00026166,2]
[355162839,1740939053589,-500.0,0.00026166,2]
[355162840,1740939053600,-588.9,0.00026166,2]
[355162841,1740939053610,-927.56,0.00026166,2]
[355162842,1740939053622,-500.0,0.00026166,2]
[355162843,1740939053632,-1337.58,0.00026166,2]
[355162844,1740939053642,-500.0,0.00026166,2]
[355162845,1740939053653,-873.07,0.00026166,2]
[355162846,1740939053664,-500.0,0.00026166,2]
[355162847,1740939053674,-956.53,0.00026166,2]
[355162848,1740939053685,-1282.66,0.00026166,2]
[355162849,1740939053696,-1394.32,0.00026166,2]
[355162850,1740939053706,-763.69,0.00026166,2]
[355162851,1740939053717,-500.0,0.00026167,2]
[355162852,1740939053727,-288.51499923,0.00026167,2]
[355162853,1740939053738,-500.0,0.00026167,2]
[355162854,1740939053748,-345.91905719,0.00026176,4]
[355162855,1740939053759,-1000.0,0.00026199,2]
[355162856,1740939053770,-500.0,0.00026265,2]
[355162857,1740939053780,-151.0,0.00026266,7]
[355162858,1740939053790,-762.55,0.00026266,7]
[355162859,1740939053800,-762.55,0.00026266,7]
[355162860,1740939053811,-151.0,0.00026266,7]
[355162861,1740939053820,-225.0,0.000263,2]
[355162862,1740939053831,-250.0,0.000263,2]
[355162863,1740939053841,-574.149872,0.000263,2]
[355162864,1740939053851,-500.0,0.00026304,2]
[355162865,1740939053861,-170.33757884,0.00026338,2]
[355162866,1740939053875,-243.34857089,0.00026339,2]
[355162867,1740939053886,-2764.77866452,0.00026339,2]
[355162868,1740939053896,-345.91905719,0.00026383,4]
[355162869,1740939053918,-1081.23,0.00026438,2]
[355162870,1740939053933,-168.72885324,0.00026438,2]
[355162871,1740939054244,-1048.69114676,0.00026438,2]
[355162872,1740939054255,-1732.71,0.00026438,2]
[355162873,1740939054264,-248.006781,0.00026438,2]
[355162874,1740939054274,-550.93,0.00026438,2]
[355162875,1740939054284,-679.32,0.00026438,2]
[355162876,1740939054294,-822.5,0.00026438,2]
[355162877,1740939054303,-196.854988,0.00026438,2]
[355162878,1740939054313,-625.27,0.00026438,2]
[355162879,1740939054324,-720.38,0.00026438,2]
[355162880,1740939054334,-1866.42,0.00026438,2]
[355162881,1740939054349,-1050.5,0.00026438,2]
[355162882,1740939054358,-930.37,0.00026438,2]
[355162883,1740939054368,-1219.5,0.00026438,2]
[355162884,1740939054380,-629.6,0.00026438,2]
[355162885,1740939054391,-1652.74,0.00026438,2]
[355162886,1740939054401,-518.97,0.00026438,2]
[355162887,1740939054411,-701.89,0.00026438,2]
[355162888,1740939054421,-500.0,0.00026438,2]
[355162889,1740939054432,-500.0,0.00026438,2]
[355162890,1740939054443,-979.63,0.00026438,2]
[355162891,1740939054452,-898.75,0.00026438,2]
[355162892,1740939054462,-500.0,0.00026438,2]
[355162893,1740939054472,-500.0,0.00026438,2]
[355162894,1740939054481,-500.0,0.00026438,2]
[355162895,1740939054491,-632.66,0.00026438,2]
[355162896,1740939054501,-500.0,0.00026438,2]
[355162897,1740939054510,-867.95,0.00026438,2]
[355162898,1740939054520,-533.61,0.00026438,2]
[355162899,1740939054530,-808.44,0.00026438,2]
[355162900,1740939054540,-500.0,0.00026438,2]
[355162901,1740939054549,-500.0,0.00026438,2]
[355162902,1740939054559,-500.0,0.00026438,2]
[355162903,1740939054568,-510.05,0.00026438,2]
[355162904,1740939054578,-500.0,0.00026438,2]
[355162905,1740939054587,-515.47,0.00026438,2]
[355162906,1740939054597,-500.0,0.00026438,2]
[355162907,1740939054607,-544.53,0.00026438,2]
[355162908,1740939054616,-500.0,0.00026438,2]
[355162909,1740939054629,-500.0,0.00026438,2]
[355162910,1740939054639,-500.0,0.00026438,2]
[355162911,1740939054648,-834.57,0.00026438,2]
[355162912,1740939054658,-705.22,0.00026438,2]
[355162913,1740939054667,-500.0,0.00026438,2]
[355162914,1740939054677,-1244.05,0.00026438,2]
[355162915,1740939054687,-500.0,0.00026438,2]
[355162916,1740939054696,-818.12,0.00026438,2]
[355162917,1740939054706,-861.37,0.00026438,2]
[355162918,1740939054715,-500.0,0.00026438,2]
[355162919,1740939054725,-574.72,0.00026438,2]
[355162920,1740939054736,-539.64,0.00026438,2]
[355162921,1740939054745,-500.0,0.00026439,2]
[355162922,1740939054755,-500.0,0.00026439,2]
[355162923,1740939054765,-500.0,0.00026439,2]
[355162924,1740939054774,-500.0,0.00026439,2]
[355162925,1740939054784,-500.0,0.00026439,2]
[355162926,1740939054794,-500.0,0.00026439,2]
[355162927,1740939054803,-500.0,0.00026439,2]
[355162928,1740939054813,-599.52,0.00026439,2]
[355162929,1740939054823,-271.27881304,0.00026439,2]
[355162930,1740939054832,-500.0,0.00026439,2]
[355162931,1740939054842,-500.0,0.00026439,2]
[355162932,1740939054851,-500.0,0.00026439,2]
[355162933,1740939055070,-500.0,0.00026439,2]
[355162934,1740939055081,-485.62,0.00026439,2]
[355162935,1740939055091,-500.0,0.00026439,2]
[355162936,1740939055100,-500.0,0.00026439,2]
[355162937,1740939055109,-500.0,0.00026439,2]
[355162938,1740939055119,-500.0,0.00026439,2]
[355162939,1740939055130,-503.26,0.00026439,2]
[355162940,1740939055140,-500.0,0.00026439,2]
[355162941,1740939055150,-500.0,0.00026439,2]
[355162942,1740939055159,-500.0,0.00026439,2]
[355162943,1740939055169,-500.0,0.00026439,2]
[355162944,1740939055178,-500.0,0.00026439,2]
[355162945,1740939055188,-500.0,0.00026439,2]
[355162946,1740939055197,-500.0,0.00026439,2]
[355162947,1740939055207,-500.0,0.00026439,2]
[355162948,1740939055217,-500.0,0.00026439,2]
[355162949,1740939055227,-500.0,0.00026439,2]
[355162950,1740939055236,-750.0,0.00026439,2]
[355162951,1740939055246,-500.0,0.00026439,2]
[355162952,1740939055256,-500.0,0.00026439,2]
[355162953,1740939055266,-500.0,0.00026439,2]
[355162954,1740939055276,-500.0,0.00026439,2]
[355162955,1740939055285,-500.0,0.00026439,2]
[355162956,1740939055295,-500.0,0.00026439,2]
[355162957,1740939055304,-500.0,0.00026439,2]
[355162958,1740939055315,-500.0,0.00026439,2]
[355162959,1740939055325,-520.22,0.00026439,2]
[355162960,1740939055339,-500.0,0.00026439,2]
[355162961,1740939055349,-603.34,0.00026439,2]
[355162962,1740939055358,-500.0,0.00026439,2]
[355162963,1740939055368,-500.0,0.00026439,2]
[355162964,1740939055380,-3256.71,0.00026439,2]
[355162965,1740939055390,-500.0,0.00026439,2]
[355162966,1740939055400,-857.56,0.00026439,2]
[355162967,1740939055412,-500.0,0.00026439,2]
[355162968,1740939055423,-500.0,0.00026439,2]
[355162969,1740939055433,-500.0,0.00026439,2]
[355162970,1740939055443,-500.0,0.00026439,2]
[355162971,1740939055452,-266.32,0.00026439,2]
[355162972,1740939055462,-925.49,0.00026439,2]
[355162973,1740939055472,-500.0,0.00026439,2]
[355162974,1740939055482,-500.0,0.00026439,2]
[355162975,1740939055492,-500.0,0.00026439,2]
[355162976,1740939055502,-500.0,0.00026439,2]
[355162977,1740939055512,-711.07,0.00026439,2]
[355162978,1740939055522,-500.0,0.00026439,2]
[355162979,1740939055532,-500.0,0.00026439,2]
[355162980,1740939055541,-673.25,0.00026439,2]
[355162981,1740939055551,-500.0,0.00026439,2]
[355162982,1740939055562,-500.0,0.00026439,2]
[355162983,1740939055571,-927.56,0.00026439,2]
[355162984,1740939055581,-500.0,0.00026439,2]
[355162985,1740939055591,-814.36,0.00026439,2]
[355162986,1740939055601,-500.0,0.00026439,2]
[355162987,1740939055612,-676.78,0.00026439,2]
[355162988,1740939055622,-500.0,0.00026439,2]
[355162989,1740939055631,-500.0,0.00026439,2]
[355162990,1740939055640,-500.0,0.00026439,2]
[355162991,1740939055650,-500.0,0.00026439,2]
[355162992,1740939055660,-528.21,0.00026439,2]
[355162993,1740939055670,-500.0,0.00026439,2]
[355162994,1740939055679,-500.0,0.00026439,2]
[355162995,1740939055689,-600.53,0.00026439,2]
[355162996,1740939055699,-650.74,0.00026439,2]
[355162997,1740939055710,-431.79,0.00026439,2]
[355162998,1740939055719,-500.0,0.00026439,2]
[355162999,1740939055729,-500.0,0.00026439,2]
[355163000,1740939055739,-608.12,0.00026439,2]
[355163001,1740939055749,-500.0,0.00026439,2]
[355163002,1740939055759,-500.0,0.00026439,2]
[355163003,1740939055768,-500.0,0.00026439,2]
[355163004,1740939055778,-713.73,0.00026439,2]
[355163005,1740939055789,-500.0,0.00026439,2]
[355163006,1740939055799,-500.0,0.00026439,2]
[355163007,1740939055809,-592.31,0.00026439,2]
[355163008,1740939055819,-768.6,0.00026439,2]
[355163009,1740939055828,-500.0,0.00026439,2]
[355163010,1740939055838,-1343.9,0.00026439,2]
[355163011,1740939055847,-500.0,0.00026439,2]
[355163012,1740939055858,-652.56,0.00026439,2]
[355163013,1740939055867,-3291.28325776,0.00026439,2]
[355163014,1740939055883,-537.73826027,0.00026439,2]
[355163015,1740939055895,-311.71848197,0.00026439,2]
[355163016,1740939055904,-549.07765421,0.00026439,2]
[355163017,1740939055915,-47.18234579,0.00026439,2]
[355163018,1740939055925,-500.0,0.00026439,2]
[355163019,1740939055935,-416.75265421,0.00026439,2]
[355163020,1740939055947,-83.24734579,0.00026439,2]
[355163021,1740939055957,-879.95017421,0.00026439,2]
[355163022,1740939055969,-390.47982579,0.00026439,2]
[355163023,1740939055979,-500.0,0.00026439,2]
[355163024,1740939055988,-120.58444625,0.00026439,2]
[355163025,1740939055999,-285.426001,0.00026439,2]
[355163026,1740939056014,-385.55955275,0.00026439,2]
[355163027,1740939056023,-500.0,0.00026439,2]
[355163028,1740939056034,-198.12144699,0.00026439,2]
[355163029,1740939056449,-500.0,0.00025068,2]
[355163030,1740939056459,-500.0,0.00025068,2]
[355163031,1740939056470,-500.0,0.00025068,2]
[355163032,1740939056479,-500.0,0.00025069,2]
[355163033,1740939056489,-600.93,0.00025069,2]
[355163034,1740939056499,-500.0,0.00025342,2]
[355163035,1740939056509,-500.0,0.00025342,2]
[355163036,1740939056519,-500.0,0.00025342,2]
[355163037,1740939056529,-500.0,0.00025343,2]
[355163038,1740939056539,-54.283177,0.00025616,2]
[355163039,1740939056743,-445.716823,0.00025616,2]
[355163040,1740939056753,-500.0,0.00025616,2]
[355163041,1740939056763,-500.0,0.00025617,2]
[355163042,1740939056777,-437.20099738,0.0002589,2]
[355163043,1740939056794,-62.79900262,0.0002589,2]
[355163044,1740939056803,-500.0,0.0002589,2]
[355163045,1740939056813,-500.0,0.00025891,2]
[355163046,1740939056822,-201.87121288,0.00026164,2]
[355163047,1740939056833,-250.05878712,0.00026164,2]
[355163048,1740939056843,-500.0,0.00026164,2]
[355163049,1740939056853,-500.0,0.00026165,2]
[355163050,1740939056863,-456.28,0.00026438,2]
[355163051,1740939056874,-236.91650946,0.00026439,2]
[355163052,1740939056935,-500.0,0.00025068,2]
[355163053,1740939056946,-64.96204355,0.00026439,2]
[355163054,1740939056956,-500.0,0.00026439,2]
[355163055,1740939056966,-500.0,0.00026439,2]
[355163056,1740939056976,-500.0,0.0002644,2]
[355163057,1740939056986,-500.0,0.0002644,2]
[355163058,1740939056996,-500.0,0.0002644,2]
[355163059,1740939057006,-500.0,0.0002644,2]
[355163060,1740939057016,-524.83824125,0.0002644,2]
[355163061,1740939057026,-500.0,0.0002644,2]
[355163062,1740939057035,-124.9097152,0.0002644,2]
[355163063,1740939057197,-375.0902848,0.0002644,2]
[355163064,1740939057208,-500.0,0.0002644,2]
[355163065,1740939057217,-500.0,0.0002644,2]
[355163066,1740939057227,-500.0,0.0002644,2]
[355163067,1740939057240,-500.0,0.0002644,2]
[355163068,1740939057250,-500.0,0.0002644,2]
[355163069,1740939057260,-500.0,0.0002644,2]